fUSD/lending_fUSD_20250712
["ID","MTS","AMOUNT","RATE_DAILY","PERIOD"]
[371340252,1752280238388,-500.0,0.00019286,2]
[371340254,1752280238397,-629.1059749,0.00019286,2]
[371340256,1752280238406,-500.0,0.00019286,2]
[371340258,1752280238415,-169.16,0.0001939,2]
[371340260,1752280238424,-41279.23792526,0.000194,2]
[371340262,1752280238434,-250.0,0.00019701,2]
[371340264,1752280238444,-1000.0,0.00019834,2]
[371340266,1752280238454,-1000.0,0.00019834,2]
[371340268,1752280238464,-241.1678911,0.000199,2]
[371340270,1752280238475,-2256.61683702,0.000199,2]
[371340272,1752280238484,-1565.67122521,0.000199,3]
[371340274,1752280238494,-169.16,0.0001999,2]
[371340276,1752280238503,-515.9897196,0.0002,2]
[371340278,1752280238512,-462.26374602,0.0002,2]
[371340280,1752280238522,-958.67366172,0.0002,4]
[371340282,1752280238531,-559.28421885,0.0002,7]
[371340284,1752280238541,-513.85512469,0.0002,7]
[371340286,1752280238550,-7109.43345172,0.0002,5]
[371340288,1752280238561,-1018.89322594,0.0002,2]
[371340290,1752280238570,-13395.33400421,0.0002,2]
[371340292,1752280238580,-4997.62816714,0.0002001,2]
[371340294,1752280238589,-5772.0,0.0002001,2]
[371340296,1752280238599,-1500.0,0.00020382,2]
[371340298,1752280238608,-1500.0,0.00020382,2]
[371340300,1752280238618,-1685.56209218,0.0002049,2]
[371340302,1752280238628,-340.43018033,0.000207,2]
[371340304,1752280238640,-6414.46015284,0.00020905,2]
[371340306,1752280238650,-2000.0,0.0002093,2]
[371340308,1752280238660,-3030.63602465,0.00021,2]
[371340310,1752280238669,-2500.0,0.00021477,2]
[371340312,1752280238679,-517.77563949,0.00021918,2]
[371340314,1752280238688,-1587.56568493,0.00022025,2]
[371340316,1752280238697,-200.0,0.000235,2]
[371340318,1752280238707,-169.16,0.00023652,2]
[371340320,1752280238716,-9495.02739862,0.00023663,2]
[371340322,1752280238725,-154.24,0.00023973,2]
[371340324,1752280238735,-5000.00363891,0.00024,5]
[371340326,1752280238745,-500.36333355,0.00024,5]
[371340328,1752280238755,-534.75695596,0.000246,2]
[371340330,1752280238764,-581.37531089,0.0002465,2]
[371340332,1752280238774,-3104.57888539,0.0002465,2]
[371340334,1752280238783,-162.71655094,0.0002465,2]
[371340336,1752280238793,-5962.02074524,0.0002465,2]
[371340338,1752280238803,-9005.39047828,0.000248,2]
[371340340,1752280238812,-7659.03457233,0.00024899,2]
[371340342,1752280238821,-201.89960009,0.00025,2]
[371340344,1752280238831,-1736.27454376,0.00025,2]
[371340346,1752280238843,-4319.2249119,0.00025,2]
[371340348,1752280238853,-200.0,0.00025,2]
[371340349,1752280238862,-1457.62208586,0.00025,2]
[371340352,1752280238876,-288.45837999,0.00025122,2]
[371340353,1752280238887,-169.16,0.00026899,2]
[371340355,1752280238896,-6414.46015284,0.00026909,2]
[371340357,1752280238906,-225.0,0.00027397,2]
[371340359,1752280238917,-235.0,0.00027397,2]
[371340361,1752280238928,-241.16789103,0.00028382,2]
[371340363,1752280238937,-9495.02739862,0.00029425,2]
[371340365,1752280238947,-2622.46917328,0.0003,2]
[371340367,1752280238956,-288.45837999,0.00032344,15]
[371340369,1752280238966,-801.31,0.000324,7]
[371340371,1752280238975,-6414.46015284,0.00032914,2]
[371340373,1752280238986,-154.24,0.00034247,2]
[371340375,1752280238995,-169.16,0.0003429,2]
[371340377,1752280239005,-1751.6,0.000343,14]
[371340379,1752280239015,-59247.47,0.000343,14]
[371340381,1752280239025,-153.0,0.00035,7]
[371340383,1752280239034,-9495.02739862,0.00035188,2]
[371340385,1752280239044,-241.16789103,0.00036865,2]
[371340387,1752280239053,-3304.78748465,0.00037,2]
[371340389,1752280239063,-169.16,0.0003719,2]
[371340391,1752280239072,-496.30842474,0.000372,120]
[371340393,1752280239082,-496.3084247,0.000372,120]
[371340395,1752280239092,-153.61,0.000382,31]
[371340397,1752280239101,-153.61,0.000382,31]
[371340399,1752280239110,-153.61,0.000382,31]
[371340401,1752280239120,-153.61,0.000382,31]
[371340403,1752280239129,-153.61,0.000382,31]
[371340405,1752280239140,-153.61,0.000382,31]
[371340407,1752280239150,-153.61,0.000382,31]
[371340410,1752280239159,-153.61,0.000382,31]
[371340412,1752280239169,-153.61,0.000382,31]
[371340414,1752280239178,-153.61,0.000382,31]
[371340416,1752280239187,-1284.68853,0.000385,30]
[371340418,1752280239197,-6414.46015284,0.00038918,2]
[371340420,1752280239207,-214.07,0.0003903,2]
[371340422,1752280239216,-500.0,0.00039452,2]
[371340424,1752280239225,-837.59737086,0.00039531,2]
[371340426,1752280239234,-210.46146674,0.00039534,2]
[371340428,1752280239244,-16135.75939917,0.00039549,120]
[371340430,1752280239254,-288.45837999,0.00039567,15]
[371340432,1752280239263,-1217.558,0.0004073,59]
[371340434,1752280239272,-9495.02739862,0.0004095,15]
[371340459,1752280239439,-9625.64597494,0.00041328,2]
[371340461,1752280239449,-167.59,0.00041342,2]
[371340464,1752280239459,-4988.0,0.000438,3]
[371340465,1752280239470,-801.31,0.000441,14]
[371340467,1752280239479,-169.16,0.00044301,2]
[371340469,1752280239488,-10551.0,0.00044311,117]
[371340471,1752280239498,-154.24,0.00044521,2]
[371340473,1752280239507,-10537.0,0.00044595,2]
[371340475,1752280239517,-496.3084247,0.0004466,120]
[371340477,1752280239526,-6414.46015284,0.00044923,15]
[371340479,1752280239535,-5508.0,0.000453,5]
[371340481,1752280239545,-241.16789103,0.00045347,28]
[371340483,1752280239554,-169.16,0.0004539,2]
[371340485,1752280239563,-59247.47,0.000454,14]
[371340487,1752280239572,-1751.6,0.000461,30]
[371340489,1752280239581,-9495.02739862,0.00046713,15]
[371340491,1752280239590,-288.45837999,0.00046789,15]
[371340493,1752280239600,-457.21,0.00046824,30]
[371340495,1752280239609,-153.61,0.000485,45]
[371340497,1752280239618,-153.61,0.000485,45]
[371340499,1752280239628,-153.61,0.000485,45]
[371340501,1752280239637,-153.61,0.000485,45]
[371340503,1752280239647,-153.61,0.000485,45]
[371340505,1752280239657,-153.61,0.000485,45]
[371340507,1752280239666,-153.61,0.000485,45]
[371340509,1752280239675,-153.61,0.000485,45]
[371340511,1752280239685,-153.61,0.000485,45]
[371340513,1752280239695,-153.61,0.000485,45]
[371340515,1752280239704,-153.61,0.000485,45]
[371340517,1752280239713,-153.61,0.000485,45]
[371340519,1752280239723,-153.61,0.000485,45]
[371340521,1752280239732,-153.61,0.000485,45]
[371340523,1752280239740,-153.61,0.000485,45]
[371340525,1752280239750,-153.61,0.000485,45]
[371340527,1752280239759,-153.61,0.000485,45]
[371340529,1752280239769,-153.61,0.000485,45]
[371340531,1752280239778,-153.61,0.000485,45]
[371340533,1752280239788,-153.61,0.000485,45]
[371340535,1752280239797,-578.72,0.00049103,2]
[371340537,1752280239807,-160.46,0.00049826,2]
[371340538,1752280239816,-164.05512291,0.000499,120]
[371340540,1752280239826,-164.05512291,0.000499,120]
[371340542,1752280239836,-296.00404917,0.0005005,10]
[371340544,1752280239846,-169.16,0.00050123,120]
[371340546,1752280239855,-23900.0,0.00050133,2]
[371340548,1752280239864,-1000.0,0.00050181,120]
[371340550,1752280239875,-164.05512291,0.00050529,120]
[371340552,1752280239884,-313.46724035,0.00050876,2]
[371340554,1752280239893,-6414.46015284,0.00050927,15]
[371340556,1752280239903,-801.31,0.00051,60]
[371340558,1752280239913,-196.08829598,0.00051645,57]
[371340560,1752280239924,-505.0,0.00052,20]
[371340562,1752280239933,-4654.04,0.00052121,2]
[371340564,1752280239942,-200.0,0.00052138,7]
[371340566,1752280239951,-500.0,0.00052206,2]
[371340568,1752280239961,-500.0,0.00052206,2]
[371340570,1752280239969,-500.0,0.00052206,2]
[371340573,1752280239979,-500.0,0.00052206,2]
[371340575,1752280239988,-500.0,0.00052206,2]
[371340577,1752280239998,-500.0,0.00052206,2]
[371340579,1752280240007,-500.0,0.00052206,2]
[371340581,1752280240016,-500.0,0.00052206,2]
[371340583,1752280240026,-500.0,0.00052206,2]
[371340585,1752280240035,-500.0,0.00052206,2]
[371340587,1752280240044,-500.0,0.00052206,2]
[371340589,1752280240054,-500.0,0.00052206,2]
[371340591,1752280240064,-500.0,0.00052206,2]
[371340593,1752280240073,-500.0,0.00052206,2]
[371340595,1752280240082,-500.0,0.00052206,2]
[371340597,1752280240091,-500.0,0.00052206,2]
[371340598,1752280240101,-500.0,0.00052206,2]
[371340599,1752280240111,-500.0,0.00052206,2]
[371340600,1752280240121,-500.0,0.00052206,2]
[371340601,1752280240130,-500.0,0.00052206,2]
[371340602,1752280240141,-169.16,0.00052227,120]
[371340603,1752280240150,-16236.0032589,0.00052237,2]
[371340604,1752280240159,-9495.02739862,0.00052475,15]
[371340605,1752280240169,-153.85,0.00052784,120]
[371340606,1752280240178,-160.0,0.00053,120]
[371340607,1752280240188,-172.11,0.00053107,120]
[371340608,1752280240197,-666.0,0.0005321,2]
[371340609,1752280240207,-7021.82598863,0.00053242,2]
[371340610,1752280240216,-164.4,0.00053305,2]
[371340611,1752280240226,-169.16,0.0005339,120]
[371340612,1752280240235,-59247.47,0.000534,14]
[371340613,1752280240244,-731.62283517,0.00053529,120]
[371340614,1752280240253,-5000.0,0.00053677,2]
[371340615,1752280240263,-160.0,0.00053699,120]
[371340617,1752280240272,-731.62283517,0.00053702,120]
[371340618,1752280240281,-1751.6,0.000538,30]
[371340619,1752280240291,-241.16789103,0.0005383,28]
[371340621,1752280240300,-328.97817488,0.0005385,2]
[371340623,1752280240309,-288.45837999,0.00054011,15]
[371340624,1752280240320,-731.62283517,0.00054232,120]
[371340625,1752280240329,-1088.99,0.0005428,90]
[371340626,1752280240338,-2000.0,0.000543,120]
[371340627,1752280240348,-945.24274676,0.00054342,56]
[371340628,1752280240357,-156.28553134,0.00054342,32]
[371340629,1752280240366,-152.0,0.0005439,30]
[371340630,1752280240376,-152.0,0.0005439,30]
[371340631,1752280240387,-1206.0,0.0005439,30]
[371340632,1752280240396,-152.0,0.0005439,30]
[371340633,1752280240405,-1206.0,0.0005439,30]
[371340634,1752280240414,-152.0,0.0005439,30]
[371340635,1752280240423,-152.0,0.0005439,30]
[371340636,1752280240432,-152.0,0.0005439,30]
[371340637,1752280240442,-152.0,0.0005439,30]
[371340638,1752280240452,-152.0,0.0005439,30]
[371340639,1752280240462,-152.0,0.0005439,30]
[371340640,1752280240471,-152.0,0.0005439,30]
[371340641,1752280240481,-152.0,0.0005439,30]
[371340642,1752280240491,-152.0,0.0005439,30]
[371340643,1752280240500,-152.0,0.0005439,30]
[371340644,1752280240510,-5027.64798,0.0005441,120]
[371340645,1752280240520,-278.71187593,0.00054452,34]
[371340646,1752280240529,-661.71238,0.00054453,120]
[371340647,1752280240539,-166.89,0.00054461,2]
[371340648,1752280240550,-500.0,0.00054473,10]
[371340649,1752280240559,-801.31,0.000545,60]
[371340650,1752280240568,-505.0,0.00054667,21]
[371340651,1752280240578,-731.62283517,0.00054725,120]
[371340652,1752280240588,-169.16,0.00054785,120]
[371340653,1752280240597,-169.16,0.00054785,120]
[371340654,1752280240607,-169.16,0.00054785,120]
[371340655,1752280240616,-169.16,0.00054785,120]
[371340656,1752280240626,-169.16,0.00054785,120]
[371340657,1752280240635,-500.0,0.00054794,90]
[371340658,1752280240645,-300.0,0.00054794,30]
[371340659,1752280240654,-154.24,0.00054795,2]
[371340660,1752280240663,-1376977.62978529,0.00054795,105]
[371340661,1752280240673,-763.31373954,0.00054795,120]
[371340662,1752280240682,-763.31373954,0.00054795,120]
[371340663,1752280240691,-763.31373954,0.00054795,120]
[371340664,1752280240700,-763.31373954,0.00054795,120]
[371340665,1752280240710,-763.31373954,0.00054795,120]
[371340666,1752280240720,-763.31373954,0.00054795,120]
[371340667,1752280240729,-763.31373954,0.00054795,120]
[371340668,1752280240739,-763.31373954,0.00054795,120]
[371340669,1752280240748,-763.31373954,0.00054795,120]
[371340670,1752280240757,-763.31373954,0.00054795,120]
[371340671,1752280240767,-763.31373954,0.00054795,120]
[371340672,1752280240776,-763.31373954,0.00054795,120]
[371340673,1752280240786,-763.31373954,0.00054795,120]
[371340674,1752280240795,-763.31373954,0.00054795,120]
[371340675,1752280240805,-763.31373954,0.00054795,120]
[371340676,1752280240814,-763.31373954,0.00054795,120]
[371340677,1752280240823,-763.31373954,0.00054795,120]
[371340678,1752280240834,-763.31373954,0.00054795,120]
[371340679,1752280240844,-763.31373954,0.00054795,120]
[371340680,1752280240854,-763.31373954,0.00054795,120]
[371340681,1752280240864,-763.31373954,0.00054795,120]
[371340682,1752280240874,-763.31373954,0.00054795,120]
[371340683,1752280240885,-763.31373954,0.00054795,120]
[371340684,1752280240894,-763.31373954,0.00054795,120]
[371340685,1752280240904,-763.31373954,0.00054795,120]
[371340686,1752280240915,-763.31373954,0.00054795,120]
[371340687,1752280240924,-763.31373954,0.00054795,120]
[371340688,1752280240934,-763.31373954,0.00054795,120]
[371340689,1752280240943,-763.31373954,0.00054795,120]
[371340690,1752280240952,-763.31373954,0.00054795,120]
[371340691,1752280240961,-763.31373954,0.00054795,120]
[371340692,1752280240970,-763.31373954,0.00054795,120]
[371340693,1752280240980,-763.31373954,0.00054795,120]
[371340694,1752280240989,-763.31373954,0.00054795,120]
[371340695,1752280240998,-763.31373954,0.00054795,120]
[371340696,1752280241008,-763.31373954,0.00054795,120]
[371340697,1752280241017,-763.31373954,0.00054795,120]
[371340698,1752280241027,-763.31373954,0.00054795,120]
[371340699,1752280241036,-763.31373954,0.00054795,120]
[371340700,1752280241045,-763.31373954,0.00054795,120]
[371340701,1752280241054,-763.31373954,0.00054795,120]
[371340702,1752280241063,-763.31373954,0.00054795,120]
[371340703,1752280241073,-763.31373954,0.00054795,120]
[371340704,1752280241082,-763.31373954,0.00054795,120]
[371340705,1752280241091,-763.31373954,0.00054795,120]
[371340706,1752280241100,-763.31373954,0.00054795,120]
[371340707,1752280241109,-763.31373954,0.00054795,120]
[371340708,1752280241119,-763.31373954,0.00054795,120]
[371340709,1752280241129,-763.31373954,0.00054795,120]
[371340710,1752280241140,-763.31373954,0.00054795,120]
[371340711,1752280241149,-763.31373954,0.00054795,120]
[371340712,1752280241159,-763.31373954,0.00054795,120]
[371340713,1752280241168,-763.31373954,0.00054795,120]
[371340714,1752280241178,-763.31373954,0.00054795,120]
[371340715,1752280241188,-763.31373954,0.00054795,120]
[371340716,1752280241197,-1000.0,0.00054795,7]
[371340717,1752280241206,-1000.0,0.00054795,7]
[371340718,1752280241216,-1000.0,0.00054795,7]
[371340719,1752280241228,-1000.0,0.00054795,7]
[371340720,1752280241238,-1000.0,0.00054795,7]
[371340721,1752280241248,-1000.0,0.00054795,7]
[371340722,1752280241258,-1000.0,0.00054795,7]
[371340723,1752280241267,-1000.0,0.00054795,7]
[371340724,1752280241277,-1000.0,0.00054795,7]
[371340725,1752280241286,-1000.0,0.00054795,7]
[371340726,1752280241295,-1000.0,0.00054795,7]
[371340727,1752280241304,-1000.0,0.00054795,7]
[371340728,1752280241314,-1000.0,0.00054795,7]
[371340729,1752280241324,-1000.0,0.00054795,7]
[371340730,1752280241336,-1000.0,0.00054795,7]
[371340731,1752280241346,-1000.0,0.00054795,7]
[371340732,1752280241356,-1000.0,0.00054795,7]
[371340733,1752280241365,-1000.0,0.00054795,7]
[371340734,1752280241375,-1000.0,0.00054795,7]
[371340735,1752280241387,-1000.0,0.00054795,7]
[371340736,1752280241396,-1000.0,0.00054795,7]
[371340737,1752280241405,-1000.0,0.00054795,7]
[371340738,1752280241415,-1000.0,0.00054795,7]
[371340739,1752280241424,-1000.0,0.00054795,7]
[371340740,1752280241434,-1000.0,0.00054795,7]
[371340741,1752280241443,-1000.0,0.00054795,7]
[371340742,1752280241452,-1000.0,0.00054795,7]
[371340743,1752280241462,-1000.0,0.00054795,7]
[371340744,1752280241471,-1000.0,0.00054795,7]
[371340745,1752280241480,-1000.0,0.00054795,7]
[371340746,1752280241489,-1000.0,0.00054795,7]
[371340748,1752280241498,-1000.0,0.00054795,7]
[371340753,1752280241620,-1000.0,0.00054795,7]
[371340754,1752280241630,-1000.0,0.00054795,7]
[371340755,1752280241641,-1000.0,0.00054795,7]
[371340756,1752280241651,-1000.0,0.00054795,7]
[371340757,1752280241660,-1000.0,0.00054795,7]
[371340758,1752280241670,-1000.0,0.00054795,7]
[371340759,1752280241679,-1000.0,0.00054795,7]
[371340760,1752280241688,-1000.0,0.00054795,7]
[371340761,1752280241697,-1000.0,0.00054795,7]
[371340762,1752280241707,-1000.0,0.00054795,7]
[371340763,1752280241716,-1000.0,0.00054795,7]
[371340764,1752280241725,-1000.0,0.00054795,7]
[371340765,1752280241735,-1020.0,0.00054795,7]
[371340766,1752280241744,-1000.0,0.00054795,7]
[371340767,1752280241753,-1000.0,0.00054795,7]
[371340768,1752280241761,-1000.0,0.00054795,7]
[371340769,1752280241771,-1000.0,0.00054795,7]
[371340770,1752280241780,-1000.0,0.00054795,7]
[371340771,1752280241789,-1000.0,0.00054795,7]
[371340772,1752280241798,-1000.0,0.00054795,7]
[371340773,1752280241807,-1056.0,0.00054795,7]
[371340774,1752280241817,-731.62283517,0.00054811,120]
[371340775,1752280241826,-800.0,0.000549,20]
[371340776,1752280241838,-398.0,0.00054914,120]
[371340777,1752280241848,-1520.0,0.00055,120]
[371340778,1752280241858,-731.62283517,0.00055132,120]
[371340779,1752280241867,-155.27,0.00055762,2]
[371340780,1752280241876,-600.07889018,0.000559,27]
[371340782,1752280241886,-169.16,0.0005599,120]
[371340784,1752280241898,-169.16,0.0005599,120]
[371340785,1752280241908,-4747.1875205,0.00056,105]
[371340786,1752280241918,-40000.0,0.00056,120]
[371340787,1752280241928,-59247.47,0.00056,60]
[371340788,1752280241937,-160.0,0.00056096,120]
[371340789,1752280241946,-374.12806066,0.00056373,5]
[371340790,1752280241956,-1751.6,0.000564,30]
[371340792,1752280241965,-1000.0,0.00056453,120]
[371340794,1752280241974,-155.27,0.00056647,2]
[371340795,1752280241983,-6414.46015284,0.00056932,15]
[371340796,1752280241994,-505.0,0.00057333,40]
[371340797,1752280242003,-155.27,0.00057532,2]
[371340798,1752280242012,-150.0,0.00057575,30]
[371340799,1752280242021,-150.0,0.00057575,30]
[371340801,1752280242031,-157.9693154,0.00057575,30]
[371340803,1752280242040,-150.0,0.00057575,30]
[371340805,1752280242050,-150.0,0.00057575,30]
[371340807,1752280242059,-236.37450243,0.00057575,30]
[371340809,1752280242069,-299.37035995,0.00057575,30]
[371340811,1752280242078,-150.0,0.00057575,30]
[371340813,1752280242087,-150.0,0.00057575,30]
[371340815,1752280242096,-150.0,0.00057575,30]
[371340817,1752280242106,-150.0,0.00057575,30]
[371340819,1752280242116,-150.0,0.00057575,30]
[371340821,1752280242126,-150.0,0.00057575,30]
[371340823,1752280242136,-150.0,0.00057575,30]
[371340825,1752280242147,-150.0,0.00057575,30]
[371340827,1752280242157,-150.0,0.00058108,120]
[371340829,1752280242166,-150.0,0.00058215,120]
[371340831,1752280242176,-9495.02739862,0.00058238,15]
[371340833,1752280242188,-150.0,0.00058375,120]
[371340836,1752280242198,-155.27,0.00058418,2]
[371340838,1752280242207,-150.0,0.00058642,120]
[371340840,1752280242217,-153.61,0.000588,60]
[371340843,1752280242225,-153.61,0.000588,60]
[371340844,1752280242235,-153.61,0.000588,60]
[371340846,1752280242245,-153.61,0.000588,60]
[371340848,1752280242254,-153.61,0.000588,60]
[371340850,1752280242264,-153.61,0.000588,60]
[371340853,1752280242273,-153.61,0.000588,60]
[371340855,1752280242283,-153.61,0.000588,60]
[371340856,1752280242292,-153.61,0.000588,60]
[371340858,1752280242302,-153.61,0.000588,60]
[371340861,1752280242311,-153.61,0.000588,60]
[371340863,1752280242321,-153.61,0.000588,60]
[371340864,1752280242330,-153.61,0.000588,60]
[371340867,1752280242340,-153.61,0.000588,60]
[371340869,1752280242350,-153.61,0.000588,60]
[371340872,1752280242359,-153.61,0.000588,60]
[371340876,1752280242368,-153.61,0.000588,60]
[371340879,1752280242379,-153.61,0.000588,60]
[371340882,1752280242389,-153.61,0.000588,60]
[371340884,1752280242398,-153.61,0.000588,60]
[371340886,1752280242407,-150.0,0.00058855,120]
[371340888,1752280242416,-162.0,0.00058901,120]
[371340890,1752280242426,-150.0,0.00059175,120]
[371340892,1752280242435,-155.27,0.00059303,2]
[371340893,1752280242444,-217.5367143,0.00059324,120]
[371340896,1752280242454,-150.0,0.00059495,120]
[371340898,1752280242463,-496.3084247,0.0005954,120]
[371340899,1752280242473,-945.24274674,0.00059561,77]
[371340902,1752280242483,-150.0,0.00059673,120]
[371340904,1752280242492,-150.0,0.00059708,120]
[371340906,1752280242502,-150.0,0.00059708,120]
[371340908,1752280242512,-150.0,0.00059708,120]
[371340910,1752280242523,-150.0,0.00059974,120]
[371340912,1752280242533,-501.76873954,0.0006,120]
[371340914,1752280242542,-507.0,0.0006,60]
[371340916,1752280242552,-169.16,0.00060021,120]
[371340918,1752280242562,-300.0,0.00060031,2]
[371340920,1752280242571,-151.0,0.00060031,2]
[371340922,1752280242581,-151.0,0.00060031,2]
[371340924,1752280242591,-295.01899177,0.00060031,2]
[371340926,1752280242601,-272.49350023,0.00060031,2]
[371340928,1752280242612,-500.0,0.00060031,2]
[371340930,1752280242622,-500.0,0.00060031,2]
[371340932,1752280242632,-500.0,0.00060031,2]
[371340934,1752280242642,-500.0,0.00060031,2]
[371340936,1752280242652,-300.0,0.00060031,2]
[371340938,1752280242662,-300.0,0.00060031,2]
[371340940,1752280242672,-300.0,0.00060031,2]
[371340942,1752280242681,-500.0,0.00060031,2]
[371340944,1752280242690,-300.0,0.00060031,2]
[371340946,1752280242699,-500.0,0.00060031,2]
[371340948,1752280242709,-300.0,0.00060031,2]
[371340950,1752280242718,-300.0,0.00060031,2]
[371340952,1752280242728,-300.0,0.00060031,2]
[371340953,1752280242737,-500.0,0.00060031,2]
[371340954,1752280242747,-300.0,0.00060031,2]
[371340955,1752280242756,-300.0,0.00060031,2]
[371340956,1752280242765,-500.0,0.00060031,2]
[371340957,1752280242774,-151.0,0.00060031,2]
[371340958,1752280242784,-300.0,0.00060031,2]
[371340959,1752280242793,-500.0,0.00060031,2]
[371340960,1752280242802,-300.0,0.00060031,2]
[371340961,1752280242812,-300.0,0.00060031,2]
[371340962,1752280242821,-151.0,0.00060031,2]
[371340963,1752280242831,-300.0,0.00060031,2]
[371340964,1752280242843,-500.0,0.00060031,2]
[371340965,1752280242852,-300.0,0.00060031,2]
[371340966,1752280242861,-151.0,0.00060031,2]
[371340967,1752280242871,-300.0,0.00060031,2]
[371340968,1752280242881,-300.0,0.00060031,2]
[371340969,1752280242891,-151.0,0.00060031,2]
[371340970,1752280242901,-500.0,0.00060031,2]
[371340971,1752280242912,-300.0,0.00060031,2]
[371340972,1752280242921,-151.0,0.00060031,2]
[371340973,1752280242933,-300.0,0.00060031,2]
[371340974,1752280242943,-151.0,0.00060031,2]
[371340975,1752280242952,-300.0,0.00060031,2]
[371340976,1752280242962,-151.0,0.00060031,2]
[371340977,1752280242971,-189.46905161,0.00060031,2]
[371340978,1752280242981,-300.0,0.00060031,2]
[371340979,1752280242991,-151.0,0.00060031,2]
[371340980,1752280243000,-300.0,0.00060031,2]
[371340981,1752280243010,-151.0,0.00060031,2]
[371340983,1752280243019,-300.0,0.00060031,2]
[371340984,1752280243029,-151.0,0.00060031,2]
[371340986,1752280243038,-151.0,0.00060031,2]
[371340988,1752280243047,-150.0,0.00060134,120]
[371340989,1752280243057,-155.27,0.00060188,2]
[371340990,1752280243067,-167.29,0.00060216,2]
[371340991,1752280243077,-268.1150594,0.00060579,2]
[371340992,1752280243086,-150.0,0.00060774,120]
[371340993,1752280243096,-150.0,0.00060774,120]
[371340995,1752280243105,-150.0,0.00060774,120]
[371340997,1752280243116,-155.27,0.00061073,2]
[371340999,1752280243125,-288.45837999,0.00061233,15]
[371341000,1752280243134,-150.0,0.00061307,120]
[371341001,1752280243146,-311.1,0.000614,2]
[371341002,1752280243156,-150.0,0.00061414,120]
[371341003,1752280243165,-150.0,0.00061574,120]
[371341004,1752280243175,-150.0,0.0006184,120]
[371341005,1752280243185,-150.0,0.0006184,120]
[371341006,1752280243194,-150.0,0.0006184,120]
[371341007,1752280243204,-150.0,0.00062053,120]
[371341008,1752280243214,-241.16789103,0.00062312,28]
[371341009,1752280243223,-150.0,0.00062373,120]
[371341010,1752280243232,-150.0,0.00062373,120]
[371341011,1752280243242,-155.0,0.000626,120]
[371341012,1752280243252,-150.0,0.00062693,120]
[371341013,1752280243261,-801.31,0.000627,60]
[371341014,1752280243271,-1000.0,0.00062726,120]
[371341015,1752280243280,-322.6107,0.00062769,2]
[371341016,1752280243289,-160.0,0.00062827,120]
[371341017,1752280243298,-150.0,0.00062906,120]
[371341018,1752280243308,-150.0,0.00062906,120]
[371341019,1752280243317,-6414.46015284,0.00062936,15]
[371341020,1752280243327,-500.0,0.0006295,14]
[371341021,1752280243336,-500.0,0.0006295,15]
[371341022,1752280243346,-150.0,0.00063173,120]
[371341023,1752280243356,-150.0,0.00063333,120]
[371341024,1752280243366,-150.0,0.00063439,120]
[371341025,1752280243375,-166.89,0.0006345,2]
[371341026,1752280243384,-500.0,0.00063498,15]
[371341027,1752280243396,-152.0,0.00063615,5]
[371341028,1752280243405,-59247.47,0.000637,60]
[371341029,1752280243415,-1217.558,0.0006382,120]
[371341030,1752280243424,-5000.0,0.00063899,120]
[371341031,1752280243434,-1200.0,0.000639,23]
[371341032,1752280243443,-223.69768073,0.00063973,120]
[371341033,1752280243452,-150.0,0.00063973,120]